[Event "Titled Tuesday Blitz May 9 Late 2023"]
[White "Spitzl, Vinzent"]
[Black "Villuendas Valero, Adrian"]
[WhiteFideId "12901253"]
[BlackFideId "2262460"]
[WhiteElo "2225"]
[BlackElo "2328"]
[Result "1-0"]
[Round "08"]
[TimeControl "180+2"]
[Date "2023.05.09"]
[WhiteClock "0:00:10"]
[BlackClock "0:00:13"]

1. e4 {[%clk 0:03:00]}  e6 {[%clk 0:03:00]} 2. d4 {[%clk 0:03:00]}  d5 {[%clk 0:03:00]} 3. Nd2 {[%clk 0:03:00]}  Be7 {[%clk 0:02:57]} 4. Ngf3 {[%clk 0:02:59]}  Nf6 {[%clk 0:02:57]} 5. Bd3 {[%clk 0:02:57]}  c5 {[%clk 0:02:56]} 6. exd5 {[%clk 0:02:48]}  Qxd5 {[%clk 0:02:55]} 7. c4 {[%clk 0:02:46]}  Qh5 {[%clk 0:02:47]} 8. O-O {[%clk 0:02:42]}  cxd4 {[%clk 0:02:44]} 9. Nxd4 {[%clk 0:02:36]}  Qxd1 {[%clk 0:02:42]} 10. Rxd1 {[%clk 0:02:36]}  a6 {[%clk 0:02:42]} 11. N2f3 {[%clk 0:02:29]}  Nbd7 {[%clk 0:02:34]} 12. Bf4 {[%clk 0:02:28]}  b6 {[%clk 0:02:19]} 13. Nc6 {[%clk 0:02:15]}  Bf8 {[%clk 0:02:10]} 14. Bc2 {[%clk 0:01:57]}  Bb7 {[%clk 0:02:10]} 15. Nfe5 {[%clk 0:01:56]}  b5 {[%clk 0:01:41]} 16. cxb5 {[%clk 0:01:46]}  axb5 {[%clk 0:01:42]} 17. Bd3 {[%clk 0:01:44]}  b4 {[%clk 0:01:35]} 18. Bb5 {[%clk 0:01:43]}  Ba6 {[%clk 0:01:27]} 19. Ba4 {[%clk 0:01:05]}  Be2 {[%clk 0:01:20]} 20. Nxd7 {[%clk 0:00:28]}  Bxd1 {[%clk 0:00:37]} 21. Nxf6+ {[%clk 0:00:20]}  gxf6 {[%clk 0:00:38]} 22. Rxd1 {[%clk 0:00:20]}  Be7 {[%clk 0:00:22]} 23. b3 {[%clk 0:00:11]}  e5 {[%clk 0:00:19]} 24. Be3 {[%clk 0:00:10]}  Kf8 {[%clk 0:00:19]} 25. Nxe7 {[%clk 0:00:10]}  Kxe7 {[%clk 0:00:19]} 26. Bc5+ {[%clk 0:00:10]}  Ke6 {[%clk 0:00:13]} 27. Bd7# {[%clk 0:00:10]} 1-0


[Site "https://www.chess.com"]

[Event "Titled Tuesday Blitz May 9 Late 2023"]
[White "Seletsky, Grigory"]
[Black "Ansh M Shah"]
[WhiteFideId "14112191"]
[BlackFideId "25033379"]
[WhiteElo "2491"]
[BlackElo "2084"]
[Result "1-0"]
[Round "08"]
[TimeControl "180+2"]
[Date "2023.05.09"]
[WhiteClock "0:01:54"]
[BlackClock "0:00:24"]

1. e4 {[%clk 0:03:00]}  c6 {[%clk 0:02:58]} 2. d4 {[%clk 0:02:58]}  d5 {[%clk 0:02:59]} 3. Nc3 {[%clk 0:02:58]}  dxe4 {[%clk 0:02:46]} 4. Nxe4 {[%clk 0:02:59]}  Bf5 {[%clk 0:02:45]} 5. Ng3 {[%clk 0:02:57]}  Bg6 {[%clk 0:02:43]} 6. Nf3 {[%clk 0:02:57]}  Nd7 {[%clk 0:02:42]} 7. Ne2 {[%clk 0:02:55]}  Ngf6 {[%clk 0:02:41]} 8. Nf4 {[%clk 0:02:55]}  e6 {[%clk 0:02:41]} 9. g3 {[%clk 0:02:55]}  Bd6 {[%clk 0:02:41]} 10. Nxg6 {[%clk 0:02:54]}  hxg6 {[%clk 0:02:40]} 11. Bg2 {[%clk 0:02:54]}  Qc7 {[%clk 0:02:35]} 12. O-O {[%clk 0:02:54]}  O-O-O {[%clk 0:02:34]} 13. c3 {[%clk 0:02:54]}  e5 {[%clk 0:02:34]} 14. dxe5 {[%clk 0:02:53]}  Nxe5 {[%clk 0:02:35]} 15. Qa4 {[%clk 0:02:48]}  Kb8 {[%clk 0:02:31]} 16. Be3 {[%clk 0:02:42]}  a6 {[%clk 0:02:03]} 17. Nxe5 {[%clk 0:02:34]}  Bxe5 {[%clk 0:02:03]} 18. Rad1 {[%clk 0:02:25]}  Rxd1 {[%clk 0:01:53]} 19. Rxd1 {[%clk 0:02:24]}  Rd8 {[%clk 0:01:53]} 20. h3 {[%clk 0:02:14]}  Nd5 {[%clk 0:01:32]} 21. Bxd5 {[%clk 0:02:12]}  cxd5 {[%clk 0:01:33]} 22. Bd4 {[%clk 0:02:12]}  Bxg3 {[%clk 0:01:02]} 23. fxg3 {[%clk 0:02:00]}  Qxg3+ {[%clk 0:01:03]} 24. Kf1 {[%clk 0:01:59]}  Qf4+ {[%clk 0:00:50]} 25. Ke2 {[%clk 0:01:56]}  b5 {[%clk 0:00:24]} 26. Ba7+ {[%clk 0:01:54]} 1-0


[Site "https://www.chess.com"]

[Event "Titled Tuesday Blitz May 9 Late 2023"]
[White "Herman, Daniel"]
[Black "Wizard_of_Odds"]
[WhiteFideId "30935008"]
[WhiteElo "1897"]
[BlackElo "2350"]
[Result "0-1"]
[Round "08"]
[TimeControl "180+2"]
[Date "2023.05.09"]
[WhiteClock "0:00:24"]
[BlackClock "0:00:10"]

1. c4 {[%clk 0:03:00]}  b6 {[%clk 0:02:58]} 2. Nc3 {[%clk 0:02:58]}  Bb7 {[%clk 0:02:59]} 3. e4 {[%clk 0:02:58]}  e6 {[%clk 0:02:59]} 4. a3 {[%clk 0:02:55]}  c5 {[%clk 0:02:54]} 5. Nf3 {[%clk 0:02:54]}  d6 {[%clk 0:02:50]} 6. d4 {[%clk 0:02:54]}  cxd4 {[%clk 0:02:50]} 7. Nxd4 {[%clk 0:02:55]}  a6 {[%clk 0:02:43]} 8. Bd3 {[%clk 0:02:50]}  Nf6 {[%clk 0:02:35]} 9. O-O {[%clk 0:02:49]}  Be7 {[%clk 0:02:35]} 10. b4 {[%clk 0:02:47]}  Qc7 {[%clk 0:02:31]} 11. Bb2 {[%clk 0:02:46]}  Nbd7 {[%clk 0:02:30]} 12. Rc1 {[%clk 0:02:45]}  Rc8 {[%clk 0:02:30]} 13. f4 {[%clk 0:02:38]}  O-O {[%clk 0:02:28]} 14. Qf3 {[%clk 0:02:18]}  Qb8 {[%clk 0:02:22]} 15. Qh3 {[%clk 0:02:12]}  Rfe8 {[%clk 0:02:18]} 16. Rce1 {[%clk 0:01:58]}  Bf8 {[%clk 0:02:03]} 17. e5 {[%clk 0:01:54]}  dxe5 {[%clk 0:01:55]} 18. fxe5 {[%clk 0:01:54]}  Nxe5 {[%clk 0:01:56]} 19. Bb1 {[%clk 0:01:44]}  Ng6 {[%clk 0:01:53]} 20. Rxf6 {[%clk 0:01:13]}  gxf6 {[%clk 0:01:52]} 21. Ne4 {[%clk 0:00:54]}  Bg7 {[%clk 0:01:50]} 22. Rf1 {[%clk 0:00:36]}  Bxe4 {[%clk 0:01:48]} 23. Bxe4 {[%clk 0:00:36]}  Rxc4 {[%clk 0:01:47]} 24. Bd3 {[%clk 0:00:30]}  Rcc8 {[%clk 0:01:05]} 25. Bxa6 {[%clk 0:00:30]}  Rcd8 {[%clk 0:00:54]} 26. Nc6 {[%clk 0:00:29]}  Qa8 {[%clk 0:00:54]} 27. b5 {[%clk 0:00:21]}  Rd2 {[%clk 0:00:50]} 28. Bc3 {[%clk 0:00:14]}  Rd6 {[%clk 0:00:45]} 29. Bb4 {[%clk 0:00:13]}  Rxc6 {[%clk 0:00:42]} 30. bxc6 {[%clk 0:00:13]}  Qxc6 {[%clk 0:00:42]} 31. Qd3 {[%clk 0:00:12]}  Ra8 {[%clk 0:00:32]} 32. Bb5 {[%clk 0:00:12]}  Qb7 {[%clk 0:00:26]} 33. Rc1 {[%clk 0:00:10]}  Rc8 {[%clk 0:00:22]} 34. Rxc8+ {[%clk 0:00:09]}  Qxc8 {[%clk 0:00:22]} 35. Qc3 {[%clk 0:00:09]}  Qxc3 {[%clk 0:00:19]} 36. Bxc3 {[%clk 0:00:10]}  f5 {[%clk 0:00:20]} 37. Bd2 {[%clk 0:00:09]}  Bd4+ {[%clk 0:00:19]} 38. Kf1 {[%clk 0:00:09]}  Bc5 {[%clk 0:00:20]} 39. a4 {[%clk 0:00:09]}  Kf8 {[%clk 0:00:18]} 40. Bg5 {[%clk 0:00:08]}  Ne5 {[%clk 0:00:03]} 41. Bf6 {[%clk 0:00:08]}  Ng6 {[%clk 0:00:04]} 42. Bd8 {[%clk 0:00:08]}  Ne7 {[%clk 0:00:04]} 43. Bc7 {[%clk 0:00:08]}  Nd5 {[%clk 0:00:04]} 44. Bb8 {[%clk 0:00:08]}  Ke7 {[%clk 0:00:04]} 45. Ba7 {[%clk 0:00:09]}  Kd8 {[%clk 0:00:05]} 46. a5 {[%clk 0:00:09]}  Kc7 {[%clk 0:00:05]} 47. a6 {[%clk 0:00:09]}  Ne7 {[%clk 0:00:05]} 48. Ke2 {[%clk 0:00:09]}  Nc8 {[%clk 0:00:04]} 49. Bxb6+ {[%clk 0:00:08]}  Bxb6 {[%clk 0:00:04]} 50. Be8 {[%clk 0:00:09]}  Nd6 {[%clk 0:00:04]} 51. Ba4 {[%clk 0:00:09]}  Kd8 {[%clk 0:00:04]} 52. Kd3 {[%clk 0:00:09]}  Ke7 {[%clk 0:00:04]} 53. g3 {[%clk 0:00:08]}  e5 {[%clk 0:00:04]} 54. Bc6 {[%clk 0:00:09]}  e4+ {[%clk 0:00:05]} 55. Ke2 {[%clk 0:00:09]}  Ke6 {[%clk 0:00:05]} 56. Ba8 {[%clk 0:00:08]}  Ke5 {[%clk 0:00:05]} 57. Bc6 {[%clk 0:00:07]}  Ba7 {[%clk 0:00:06]} 58. Bb7 {[%clk 0:00:08]}  f4 {[%clk 0:00:06]} 59. gxf4+ {[%clk 0:00:08]}  Kxf4 {[%clk 0:00:07]} 60. Bd5 {[%clk 0:00:08]}  Ke5 {[%clk 0:00:06]} 61. Bc6 {[%clk 0:00:08]}  f5 {[%clk 0:00:07]} 62. Bd7 {[%clk 0:00:09]}  f4 {[%clk 0:00:07]} 63. Bg4 {[%clk 0:00:09]}  f3+ {[%clk 0:00:07]} 64. Bxf3 {[%clk 0:00:10]}  exf3+ {[%clk 0:00:08]} 65. Kxf3 {[%clk 0:00:11]}  Kf5 {[%clk 0:00:09]} 66. Kg3 {[%clk 0:00:10]}  Nb5 {[%clk 0:00:08]} 67. Kf3 {[%clk 0:00:10]}  Nc7 {[%clk 0:00:09]} 68. Kg3 {[%clk 0:00:11]}  Nxa6 {[%clk 0:00:09]} 69. Kh4 {[%clk 0:00:12]}  Kg6 {[%clk 0:00:09]} 70. Kg4 {[%clk 0:00:12]}  Bb8 {[%clk 0:00:10]} 71. h4 {[%clk 0:00:12]}  h5+ {[%clk 0:00:10]} 72. Kh3 {[%clk 0:00:13]}  Nc5 {[%clk 0:00:10]} 73. Kg2 {[%clk 0:00:14]}  Kf5 {[%clk 0:00:10]} 74. Kh3 {[%clk 0:00:15]}  Ne6 {[%clk 0:00:10]} 75. Kg2 {[%clk 0:00:15]}  Kg4 {[%clk 0:00:10]} 76. Kh1 {[%clk 0:00:15]}  Kxh4 {[%clk 0:00:11]} 77. Kg1 {[%clk 0:00:16]}  Be5 {[%clk 0:00:11]} 78. Kg2 {[%clk 0:00:17]}  Bh8 {[%clk 0:00:11]} 79. Kg1 {[%clk 0:00:17]}  Kg3 {[%clk 0:00:12]} 80. Kh1 {[%clk 0:00:18]}  Ng5 {[%clk 0:00:11]} 81. Kg1 {[%clk 0:00:19]}  Ne4 {[%clk 0:00:11]} 82. Kh1 {[%clk 0:00:20]}  Nf2+ {[%clk 0:00:11]} 83. Kg1 {[%clk 0:00:21]}  h4 {[%clk 0:00:11]} 84. Kf1 {[%clk 0:00:21]}  h3 {[%clk 0:00:11]} 85. Kg1 {[%clk 0:00:22]}  h2+ {[%clk 0:00:11]} 86. Kf1 {[%clk 0:00:23]}  h1=Q+ {[%clk 0:00:11]} 87. Ke2 {[%clk 0:00:23]}  Qf3+ {[%clk 0:00:12]} 88. Kd2 {[%clk 0:00:24]}  Qd3+ {[%clk 0:00:12]} 89. Ke1 {[%clk 0:00:24]}  Qd1# {[%clk 0:00:10]} 0-1


[Site "https://www.chess.com"]

[Event "Titled Tuesday Blitz May 9 Late 2023"]
[White "Bolourchifard, Farzad"]
[Black "FuenfgegenWilly"]
[WhiteFideId "12510084"]
[WhiteElo "2317"]
[BlackElo "2339"]
[Result "1-0"]
[Round "08"]
[TimeControl "180+2"]
[Date "2023.05.09"]
[WhiteClock "0:02:04"]
[BlackClock "0:01:22"]

1. d4 {[%clk 0:03:00]}  Nf6 {[%clk 0:02:58]} 2. Nf3 {[%clk 0:03:01]}  e6 {[%clk 0:02:58]} 3. c4 {[%clk 0:03:01]}  Bb4+ {[%clk 0:02:58]} 4. Nbd2 {[%clk 0:03:00]}  c6 {[%clk 0:02:54]} 5. e3 {[%clk 0:03:00]}  d5 {[%clk 0:02:54]} 6. Bd3 {[%clk 0:03:00]}  O-O {[%clk 0:02:51]} 7. a3 {[%clk 0:03:00]}  Bd6 {[%clk 0:02:48]} 8. c5 {[%clk 0:03:00]}  Bc7 {[%clk 0:02:47]} 9. O-O {[%clk 0:02:58]}  Nbd7 {[%clk 0:02:45]} 10. b4 {[%clk 0:02:58]}  e5 {[%clk 0:02:45]} 11. dxe5 {[%clk 0:02:59]}  Nxe5 {[%clk 0:02:46]} 12. Be2 {[%clk 0:02:52]}  Re8 {[%clk 0:02:41]} 13. Bb2 {[%clk 0:02:51]}  a5 {[%clk 0:02:34]} 14. Nxe5 {[%clk 0:02:46]}  Bxe5 {[%clk 0:02:35]} 15. Bxe5 {[%clk 0:02:46]}  Rxe5 {[%clk 0:02:36]} 16. Nf3 {[%clk 0:02:47]}  Re7 {[%clk 0:02:34]} 17. Nd4 {[%clk 0:02:47]}  Ne4 {[%clk 0:02:30]} 18. Bd3 {[%clk 0:02:47]}  Qe8 {[%clk 0:02:11]} 19. Qc2 {[%clk 0:02:46]}  g6 {[%clk 0:01:58]} 20. h3 {[%clk 0:02:44]}  Re5 {[%clk 0:01:57]} 21. b5 {[%clk 0:02:13]}  Rg5 {[%clk 0:01:36]} 22. f4 {[%clk 0:02:06]}  Rg3 {[%clk 0:01:33]} 23. Bxe4 {[%clk 0:02:04]}  Qxe4 {[%clk 0:01:29]} 24. Qxe4 {[%clk 0:02:04]}  dxe4 {[%clk 0:01:22]} 25. Kf2 {[%clk 0:02:04]} 1-0


[Site "https://www.chess.com"]

[Event "Titled Tuesday Blitz May 9 Late 2023"]
[White "Arnold, Ken"]
[Black "Jovic, Stanoje"]
[WhiteFideId "2056836"]
[BlackFideId "905020"]
[WhiteElo "2386"]
[BlackElo "2236"]
[Result "0-1"]
[Round "08"]
[TimeControl "180+2"]
[Date "2023.05.09"]
[WhiteClock "0:00:06"]
[BlackClock "0:00:10"]

1. d4 {[%clk 0:03:00]}  Nf6 {[%clk 0:02:59]} 2. c4 {[%clk 0:03:00]}  e6 {[%clk 0:02:59]} 3. Nf3 {[%clk 0:03:00]}  b6 {[%clk 0:02:59]} 4. Nc3 {[%clk 0:03:00]}  Bb4 {[%clk 0:02:58]} 5. Bd2 {[%clk 0:03:00]}  O-O {[%clk 0:02:56]} 6. g3 {[%clk 0:02:59]}  Ba6 {[%clk 0:02:55]} 7. e3 {[%clk 0:02:58]}  c5 {[%clk 0:02:48]} 8. a3 {[%clk 0:02:56]}  Bxc3 {[%clk 0:02:48]} 9. Bxc3 {[%clk 0:02:56]}  d5 {[%clk 0:02:41]} 10. cxd5 {[%clk 0:02:55]}  Bxf1 {[%clk 0:02:39]} 11. Kxf1 {[%clk 0:02:55]}  exd5 {[%clk 0:02:37]} 12. Kg2 {[%clk 0:02:54]}  Ne4 {[%clk 0:02:36]} 13. Rc1 {[%clk 0:02:52]}  c4 {[%clk 0:02:34]} 14. Bb4 {[%clk 0:02:48]}  Re8 {[%clk 0:02:33]} 15. b3 {[%clk 0:02:44]}  b5 {[%clk 0:02:30]} 16. bxc4 {[%clk 0:02:38]}  bxc4 {[%clk 0:02:29]} 17. Qa4 {[%clk 0:02:36]}  Nd7 {[%clk 0:02:20]} 18. Rc2 {[%clk 0:02:33]}  Re6 {[%clk 0:02:05]} 19. Rd1 {[%clk 0:02:22]}  g5 {[%clk 0:01:57]} 20. Be1 {[%clk 0:02:14]}  g4 {[%clk 0:01:49]} 21. Nd2 {[%clk 0:02:03]}  Ng5 {[%clk 0:01:40]} 22. Rb1 {[%clk 0:01:52]}  Nb6 {[%clk 0:01:32]} 23. Qa5 {[%clk 0:01:48]}  h5 {[%clk 0:01:18]} 24. Rcb2 {[%clk 0:01:44]}  h4 {[%clk 0:01:09]} 25. gxh4 {[%clk 0:01:21]}  Nf3 {[%clk 0:01:09]} 26. Nxf3 {[%clk 0:01:16]}  gxf3+ {[%clk 0:01:09]} 27. Kxf3 {[%clk 0:01:13]}  Qxh4 {[%clk 0:00:59]} 28. Ke2 {[%clk 0:00:56]}  Qh5+ {[%clk 0:00:57]} 29. Kd2 {[%clk 0:00:56]}  Qg6 {[%clk 0:00:53]} 30. Qc3 {[%clk 0:00:47]}  Kg7 {[%clk 0:00:41]} 31. Qc2 {[%clk 0:00:47]}  c3+ {[%clk 0:00:32]} 32. Qxc3 {[%clk 0:00:41]}  Nc4+ {[%clk 0:00:29]} 33. Kd1 {[%clk 0:00:35]}  Nxb2+ {[%clk 0:00:29]} 34. Rxb2 {[%clk 0:00:33]}  Rc6 {[%clk 0:00:29]} 35. Qd2 {[%clk 0:00:28]}  Rac8 {[%clk 0:00:26]} 36. f3 {[%clk 0:00:21]}  Kh8 {[%clk 0:00:20]} 37. Bg3 {[%clk 0:00:20]}  Qh5 {[%clk 0:00:19]} 38. Ke2 {[%clk 0:00:19]}  Qh3 {[%clk 0:00:17]} 39. Kf2 {[%clk 0:00:16]}  Rc1 {[%clk 0:00:16]} 40. Qe2 {[%clk 0:00:15]}  Rh1 {[%clk 0:00:13]} 41. Rb8 {[%clk 0:00:11]}  Rxh2+ {[%clk 0:00:09]} 42. Bxh2 {[%clk 0:00:10]}  Qxh2+ {[%clk 0:00:10]} 43. Ke1 {[%clk 0:00:10]}  Qxe2+ {[%clk 0:00:10]} 44. Kxe2 {[%clk 0:00:06]}  Rxb8 {[%clk 0:00:10]} 0-1


[Site "https://www.chess.com"]

[Event "Titled Tuesday Blitz May 9 Late 2023"]
[White "Bambino Filho, Antonio Carlos"]
[Black "Rangel, Daniel"]
[WhiteFideId "2113163"]
[BlackFideId "2124475"]
[WhiteElo "2485"]
[BlackElo "2256"]
[Result "0-1"]
[Round "08"]
[TimeControl "180+2"]
[Date "2023.05.09"]
[WhiteClock "0:02:08"]
[BlackClock "0:02:40"]

1. d4 {[%clk 0:03:00]}  Nf6 {[%clk 0:02:57]} 2. c4 {[%clk 0:03:01]}  e6 {[%clk 0:02:58]} 3. Nc3 {[%clk 0:03:00]}  d5 {[%clk 0:02:58]} 4. cxd5 {[%clk 0:03:00]}  exd5 {[%clk 0:02:58]} 5. Bg5 {[%clk 0:03:00]}  Bd6 {[%clk 0:02:58]} 6. e3 {[%clk 0:02:57]}  Be6 {[%clk 0:02:55]} 7. Bd3 {[%clk 0:02:54]}  c6 {[%clk 0:02:54]} 8. Nf3 {[%clk 0:02:53]}  Nbd7 {[%clk 0:02:54]} 9. O-O {[%clk 0:02:52]}  a6 {[%clk 0:02:51]} 10. Qc2 {[%clk 0:02:41]}  h6 {[%clk 0:02:49]} 11. Bh4 {[%clk 0:02:39]}  O-O {[%clk 0:02:48]} 12. Rad1 {[%clk 0:02:34]}  Rc8 {[%clk 0:02:47]} 13. e4 {[%clk 0:02:34]}  dxe4 {[%clk 0:02:47]} 14. Nxe4 {[%clk 0:02:35]}  Be7 {[%clk 0:02:48]} 15. Nc3 {[%clk 0:02:20]}  Nd5 {[%clk 0:02:45]} 16. Bg3 {[%clk 0:02:17]}  Nb4 {[%clk 0:02:43]} 17. Qe2 {[%clk 0:02:16]}  Nxd3 {[%clk 0:02:42]} 18. Qe3 {[%clk 0:02:08]}  Nxb2 {[%clk 0:02:40]} 0-1


[Site "https://www.chess.com"]

[Event "Titled Tuesday Blitz May 9 Late 2023"]
[White "DubiousM0ves532"]
[Black "Vaglio Munoz, Jaime"]
[BlackFideId "6500145"]
[WhiteElo "2449"]
[BlackElo "2199"]
[Result "1-0"]
[Round "08"]
[TimeControl "180+2"]
[Date "2023.05.09"]
[WhiteClock "0:00:25"]
[BlackClock "0:00:20"]

1. Nf3 {[%clk 0:03:00]}  c6 {[%clk 0:02:56]} 2. d4 {[%clk 0:03:00]}  b5 {[%clk 0:02:55]} 3. e4 {[%clk 0:02:57]}  a6 {[%clk 0:02:55]} 4. c4 {[%clk 0:02:57]}  bxc4 {[%clk 0:02:54]} 5. Bxc4 {[%clk 0:02:57]}  d5 {[%clk 0:02:55]} 6. exd5 {[%clk 0:02:52]}  cxd5 {[%clk 0:02:56]} 7. Bb3 {[%clk 0:02:47]}  Bg4 {[%clk 0:02:53]} 8. Nc3 {[%clk 0:02:47]}  Bxf3 {[%clk 0:02:51]} 9. Qxf3 {[%clk 0:02:46]}  e6 {[%clk 0:02:51]} 10. O-O {[%clk 0:02:44]}  Nf6 {[%clk 0:02:50]} 11. Bg5 {[%clk 0:02:43]}  Be7 {[%clk 0:02:49]} 12. Bc2 {[%clk 0:02:32]}  h6 {[%clk 0:02:48]} 13. Bh4 {[%clk 0:02:30]}  Nc6 {[%clk 0:02:46]} 14. Ba4 {[%clk 0:02:18]}  Rc8 {[%clk 0:02:37]} 15. Qd3 {[%clk 0:02:18]}  Qa5 {[%clk 0:02:34]} 16. a3 {[%clk 0:02:10]}  O-O {[%clk 0:02:32]} 17. b4 {[%clk 0:02:10]}  Qb6 {[%clk 0:02:32]} 18. Rfd1 {[%clk 0:01:53]}  Na7 {[%clk 0:02:25]} 19. Bc2 {[%clk 0:01:49]}  g6 {[%clk 0:02:19]} 20. Na4 {[%clk 0:01:46]}  Qb5 {[%clk 0:02:17]} 21. Nc5 {[%clk 0:01:16]}  a5 {[%clk 0:01:56]} 22. Qd2 {[%clk 0:00:33]}  axb4 {[%clk 0:01:53]} 23. axb4 {[%clk 0:00:27]}  Nc6 {[%clk 0:01:49]} 24. Bxf6 {[%clk 0:00:27]}  Bxf6 {[%clk 0:01:46]} 25. Nd7 {[%clk 0:00:26]}  Bxd4 {[%clk 0:01:45]} 26. Nxf8 {[%clk 0:00:26]}  Rxf8 {[%clk 0:01:37]} 27. Ba4 {[%clk 0:00:25]}  Qb6 {[%clk 0:01:21]} 28. Rac1 {[%clk 0:00:23]}  Bxf2+ {[%clk 0:00:46]} 29. Qxf2 {[%clk 0:00:22]}  Qxf2+ {[%clk 0:00:45]} 30. Kxf2 {[%clk 0:00:23]}  Nxb4 {[%clk 0:00:45]} 31. Rd4 {[%clk 0:00:16]}  Na6 {[%clk 0:00:43]} 32. Bb5 {[%clk 0:00:13]}  Nb8 {[%clk 0:00:40]} 33. Rc7 {[%clk 0:00:12]}  Kg7 {[%clk 0:00:39]} 34. Ra4 {[%clk 0:00:12]}  Kf6 {[%clk 0:00:38]} 35. Raa7 {[%clk 0:00:12]}  Ke5 {[%clk 0:00:38]} 36. Rab7 {[%clk 0:00:12]}  Kd6 {[%clk 0:00:37]} 37. Ra7 {[%clk 0:00:06]}  f5 {[%clk 0:00:36]} 38. Rcb7 {[%clk 0:00:05]}  Kc5 {[%clk 0:00:31]} 39. Ba4 {[%clk 0:00:03]}  Rd8 {[%clk 0:00:21]} 40. Rb5+ {[%clk 0:00:02]}  Kd6 {[%clk 0:00:20]} 41. Rb6+ {[%clk 0:00:02]}  Ke5 {[%clk 0:00:20]} 42. Rab7 {[%clk 0:00:02]}  Nc6 {[%clk 0:00:16]} 43. Rxc6 {[%clk 0:00:02]}  d4 {[%clk 0:00:16]} 44. Rbb6 {[%clk 0:00:03]}  Re8 {[%clk 0:00:14]} 45. Rc5+ {[%clk 0:00:03]}  Ke4 {[%clk 0:00:14]} 46. Bxe8 {[%clk 0:00:04]}  d3 {[%clk 0:00:13]} 47. Rxe6+ {[%clk 0:00:05]}  Kf4 {[%clk 0:00:13]} 48. Rd6 {[%clk 0:00:06]}  d2 {[%clk 0:00:13]} 49. Rxd2 {[%clk 0:00:06]}  g5 {[%clk 0:00:14]} 50. Rc4+ {[%clk 0:00:07]}  Ke5 {[%clk 0:00:13]} 51. Bc6 {[%clk 0:00:08]}  g4 {[%clk 0:00:13]} 52. Rd5+ {[%clk 0:00:09]}  Kf6 {[%clk 0:00:12]} 53. Rxf5+ {[%clk 0:00:09]}  Kxf5 {[%clk 0:00:12]} 54. Bd7+ {[%clk 0:00:10]}  Kg5 {[%clk 0:00:12]} 55. Bxg4 {[%clk 0:00:11]}  h5 {[%clk 0:00:12]} 56. Bxh5 {[%clk 0:00:11]}  Kxh5 {[%clk 0:00:12]} 57. g3 {[%clk 0:00:12]}  Kg5 {[%clk 0:00:11]} 58. Rf4 {[%clk 0:00:13]}  Kh5 {[%clk 0:00:11]} 59. Kg2 {[%clk 0:00:14]}  Kg5 {[%clk 0:00:12]} 60. h4+ {[%clk 0:00:15]}  Kh5 {[%clk 0:00:12]} 61. Kh3 {[%clk 0:00:16]}  Kg6 {[%clk 0:00:12]} 62. Rf3 {[%clk 0:00:17]}  Kh6 {[%clk 0:00:13]} 63. g4 {[%clk 0:00:18]}  Kg6 {[%clk 0:00:14]} 64. Kg3 {[%clk 0:00:19]}  Kh6 {[%clk 0:00:15]} 65. Rf5 {[%clk 0:00:19]}  Kg6 {[%clk 0:00:16]} 66. Rg5+ {[%clk 0:00:20]}  Kh6 {[%clk 0:00:17]} 67. Kf4 {[%clk 0:00:21]}  Kh7 {[%clk 0:00:17]} 68. h5 {[%clk 0:00:21]}  Kh6 {[%clk 0:00:18]} 69. Rg6+ {[%clk 0:00:22]}  Kh7 {[%clk 0:00:19]} 70. Kf5 {[%clk 0:00:23]}  Kh8 {[%clk 0:00:18]} 71. Rb6 {[%clk 0:00:24]}  Kh7 {[%clk 0:00:19]} 72. Kg5 {[%clk 0:00:24]}  Kh8 {[%clk 0:00:20]} 73. Kg6 {[%clk 0:00:24]}  Kg8 {[%clk 0:00:20]} 74. Rb8# {[%clk 0:00:25]} 1-0


[Site "https://www.chess.com"]

[Event "Titled Tuesday Blitz May 9 Late 2023"]
[White "Koutsin"]
[Black "Butti, Enrique"]
[BlackFideId "3700470"]
[WhiteElo "2431"]
[BlackElo "2080"]
[Result "1-0"]
[Round "08"]
[TimeControl "180+2"]
[Date "2023.05.09"]
[WhiteClock "0:00:04"]
[BlackClock "0:00:05"]

1. d4 {[%clk 0:03:00]}  Nf6 {[%clk 0:02:59]} 2. c4 {[%clk 0:03:00]}  e6 {[%clk 0:02:58]} 3. Nf3 {[%clk 0:02:59]}  c5 {[%clk 0:02:56]} 4. d5 {[%clk 0:02:59]}  exd5 {[%clk 0:02:56]} 5. cxd5 {[%clk 0:03:00]}  d6 {[%clk 0:02:56]} 6. Nc3 {[%clk 0:03:00]}  g6 {[%clk 0:02:56]} 7. Nd2 {[%clk 0:03:00]}  Nbd7 {[%clk 0:02:51]} 8. e4 {[%clk 0:03:00]}  a6 {[%clk 0:02:47]} 9. a4 {[%clk 0:03:00]}  Bg7 {[%clk 0:02:45]} 10. Be2 {[%clk 0:02:42]}  O-O {[%clk 0:02:44]} 11. O-O {[%clk 0:02:42]}  Ne8 {[%clk 0:02:43]} 12. a5 {[%clk 0:02:38]}  Nc7 {[%clk 0:02:35]} 13. Kh1 {[%clk 0:01:47]}  Qe7 {[%clk 0:02:25]} 14. f3 {[%clk 0:01:38]}  g5 {[%clk 0:02:18]} 15. Nc4 {[%clk 0:01:37]}  Nb5 {[%clk 0:02:04]} 16. Na4 {[%clk 0:01:29]}  Nd4 {[%clk 0:02:02]} 17. Bd3 {[%clk 0:01:18]}  Ne5 {[%clk 0:01:55]} 18. Nab6 {[%clk 0:01:11]}  Rb8 {[%clk 0:01:50]} 19. Ra3 {[%clk 0:00:53]}  Nxd3 {[%clk 0:01:35]} 20. Rxd3 {[%clk 0:00:50]}  f5 {[%clk 0:01:34]} 21. Nxc8 {[%clk 0:00:48]}  Rbxc8 {[%clk 0:01:31]} 22. exf5 {[%clk 0:00:48]}  Rxf5 {[%clk 0:01:23]} 23. Re3 {[%clk 0:00:39]}  Qd8 {[%clk 0:01:18]} 24. Rfe1 {[%clk 0:00:25]}  Rxd5 {[%clk 0:01:12]} 25. Nb6 {[%clk 0:00:25]}  Re5 {[%clk 0:01:05]} 26. Nxc8 {[%clk 0:00:20]}  Qxc8 {[%clk 0:01:05]} 27. Rxe5 {[%clk 0:00:20]}  dxe5 {[%clk 0:00:54]} 28. Bxg5 {[%clk 0:00:20]}  Qc7 {[%clk 0:00:50]} 29. Qd2 {[%clk 0:00:17]}  Qf7 {[%clk 0:00:40]} 30. Be3 {[%clk 0:00:16]}  Qb3 {[%clk 0:00:38]} 31. Qc3 {[%clk 0:00:14]}  Qb5 {[%clk 0:00:36]} 32. Rc1 {[%clk 0:00:12]}  Bf8 {[%clk 0:00:28]} 33. Qc4+ {[%clk 0:00:12]}  Qxc4 {[%clk 0:00:28]} 34. Rxc4 {[%clk 0:00:11]}  Nb3 {[%clk 0:00:27]} 35. Rc3 {[%clk 0:00:11]}  Nxa5 {[%clk 0:00:27]} 36. Bxc5 {[%clk 0:00:11]}  Nc6 {[%clk 0:00:26]} 37. Bxf8 {[%clk 0:00:09]}  Kxf8 {[%clk 0:00:25]} 38. Kg1 {[%clk 0:00:08]}  Ke7 {[%clk 0:00:25]} 39. Kf2 {[%clk 0:00:09]}  Kd6 {[%clk 0:00:24]} 40. g4 {[%clk 0:00:09]}  b5 {[%clk 0:00:22]} 41. h4 {[%clk 0:00:08]}  b4 {[%clk 0:00:21]} 42. Rd3+ {[%clk 0:00:08]}  Nd4 {[%clk 0:00:21]} 43. Ke3 {[%clk 0:00:06]}  Kc5 {[%clk 0:00:20]} 44. Ke4 {[%clk 0:00:06]}  Nc6 {[%clk 0:00:19]} 45. b3 {[%clk 0:00:04]}  a5 {[%clk 0:00:18]} 46. g5 {[%clk 0:00:01]}  a4 {[%clk 0:00:16]} 47. bxa4 {[%clk 0:00:01]}  Kc4 {[%clk 0:00:16]} 48. h5 {[%clk 0:00:02]}  b3 {[%clk 0:00:16]} 49. Rxb3 {[%clk 0:00:02]}  Kxb3 {[%clk 0:00:15]} 50. g6 {[%clk 0:00:03]}  hxg6 {[%clk 0:00:05]} 51. h6 {[%clk 0:00:04]} 1-0


[Site "https://www.chess.com"]